fUSD/lending_fUSD_20250923
["ID","MTS","AMOUNT","RATE_DAILY","PERIOD"]
[387197061,1758637703199,205.0,0.0001757,2]
[387197073,1758637831903,-938.58626969,0.0001858,2]
[387197074,1758637831927,-61.41373031,0.0001858,2]
[387197075,1758637831941,-487.674,0.0001858,2]
[387197076,1758637831951,-228.93,0.0001858,2]
[387197077,1758637831962,-250.0,0.00018586,2]
[387197078,1758637831972,-586.98605768,0.00018591,2]
[387197079,1758637831986,-613.01394232,0.00018591,2]
[387197080,1758637831995,-201.80708156,0.00018619,2]
[387197081,1758637832007,-98.19291844,0.00018619,2]
[387197082,1758637832016,-300.0,0.00018619,2]
[387197083,1758637832026,-1200.0,0.00018619,2]
[387197084,1758637832036,-809.5922194,0.0001862,2]
[387197085,1758637832046,-221.54,0.000187,2]
[387197086,1758637832055,-200.0,0.0001875,2]
[387197087,1758637832065,-1522.19,0.00018927,2]
[387197088,1758637832075,-364.39,0.00019048,2]
[387197089,1758637832084,-250.0,0.00019113,2]
[387197090,1758637832094,-1000.0,0.00019113,2]
[387197091,1758637832103,-351.83,0.00019186,2]
[387197092,1758637832112,-1310.49,0.00019225,2]
[387197093,1758637832122,-248.71531821,0.00019324,2]
[387197094,1758637832132,-151.0,0.00019347,2]
[387197095,1758637832142,-400.0,0.0001937,2]
[387197096,1758637832152,-32.04117582,0.00019375,2]
[387197097,1758637832173,-132.99882418,0.00019375,2]
[387197098,1758637832183,-925.98463625,0.00019375,2]
[387197099,1758637832195,-1599.22750367,0.00019375,2]
[387197100,1758637832246,-466.76144635,0.00019375,2]
[387197101,1758637832281,-1950.79641373,0.00019375,2]
[387197102,1758637832291,-212.08813012,0.00019453,2]
[387197103,1758637832301,-847.50416796,0.00019453,2]
[387197104,1758637832311,-299.08,0.00019599,2]
[387197105,1758637832320,-170.82,0.00019619,2]
[387197106,1758637832330,-1000.0,0.000197,2]
[387197107,1758637832339,-339.64,0.000197,2]
[387197108,1758637832349,-646.86666754,0.00019767,2]
[387197109,1758637832360,-500.0,0.00019767,2]
[387197110,1758637832369,-500.0,0.00019767,2]
[387197111,1758637832378,-500.0,0.00019767,2]
[387197112,1758637832388,-500.0,0.00019767,2]
[387197113,1758637832398,-500.0,0.00019767,2]
[387197114,1758637832408,-500.0,0.00019767,2]
[387197115,1758637832418,-378.58611183,0.00019767,2]
[387197117,1758637832429,-500.0,0.00019767,2]
[387197119,1758637832439,-500.0,0.00019767,2]
[387197121,1758637832449,-194.82327474,0.00019767,2]
[387197123,1758637832459,-500.0,0.00019767,2]
[387197125,1758637832469,-500.0,0.00019767,2]
[387197127,1758637832480,-500.0,0.00019767,2]
[387197129,1758637832489,-500.0,0.00019767,2]
[387197131,1758637832499,-500.0,0.00019767,2]
[387197133,1758637832509,-500.0,0.00019767,2]
[387197135,1758637832519,-500.0,0.00019767,2]
[387197137,1758637832528,-500.0,0.00019767,2]
[387197139,1758637832538,-500.0,0.00019767,2]
[387197141,1758637832548,-500.0,0.00019767,2]
[387197143,1758637832558,-500.0,0.00019767,2]
[387197144,1758637832567,-500.0,0.00019767,2]
[387197146,1758637832577,-500.0,0.00019767,2]
[387197148,1758637832587,-151.0,0.00019768,2]
[387197150,1758637832597,-151.0,0.00019768,2]
[387197152,1758637832607,-151.0,0.00019768,2]
[387197155,1758637832617,-151.0,0.00019768,2]
[387197156,1758637832627,-500.0,0.00019768,2]
[387197158,1758637832637,-500.0,0.00019768,2]
[387197161,1758637832648,-500.0,0.00019768,2]
[387197162,1758637832658,-500.0,0.00019768,2]
[387197164,1758637832668,-324.38713735,0.00019768,2]
[387197166,1758637832678,-200.0,0.00019768,2]
[387197168,1758637832688,-500.0,0.00019768,2]
[387197170,1758637832697,-500.0,0.00019768,2]
[387197172,1758637832707,-500.0,0.00019768,2]
[387197174,1758637832717,-500.0,0.00019768,2]
[387197176,1758637832726,-500.0,0.00019768,2]
[387197178,1758637832736,-151.0,0.00019768,2]
[387197180,1758637832746,-200.0,0.00019768,2]
[387197182,1758637832755,-500.0,0.00019768,2]
[387197184,1758637832765,-155.02238158,0.00019768,2]
[387197186,1758637832775,-500.0,0.00019768,2]
[387197188,1758637832786,-500.0,0.00019768,2]
[387197190,1758637832796,-151.0,0.00019768,2]
[387197192,1758637832805,-500.0,0.00019768,2]
[387197194,1758637832815,-151.0,0.00019768,2]
[387197196,1758637832825,-500.0,0.00019768,2]
[387197199,1758637832835,-151.0,0.00019768,2]
[387197201,1758637832845,-500.0,0.00019768,2]
[387197203,1758637832857,-500.0,0.00019768,2]
[387197205,1758637832867,-151.0,0.00019768,2]
[387197206,1758637832876,-500.0,0.00019768,2]
[387197209,1758637832886,-500.0,0.00019768,2]
[387197211,1758637832897,-151.0,0.00019768,2]
[387197213,1758637832906,-500.0,0.00019768,2]
[387197215,1758637832917,-151.0,0.00019768,2]
[387197217,1758637832927,-500.0,0.00019768,2]
[387197219,1758637832936,-151.0,0.00019768,2]
[387197221,1758637832945,-500.0,0.00019768,2]
[387197223,1758637832956,-151.0,0.00019768,2]
[387197224,1758637832967,-151.0,0.00019768,2]
[387197227,1758637832978,-221.76172121,0.00019768,2]
[387197230,1758637833006,-278.23827879,0.00019768,2]
[387197232,1758637833015,-163.2460079,0.00019768,2]
[387197236,1758637833043,-336.7539921,0.00019768,2]
[387197238,1758637833053,-151.0,0.00019768,2]
[387197240,1758637833063,-500.0,0.00019768,2]
[387197242,1758637833073,-500.0,0.00019768,2]
[387197244,1758637833083,-151.0,0.00019768,2]
[387197246,1758637833093,-151.0,0.00019768,2]
[387197248,1758637833103,-500.0,0.00019768,2]
[387197250,1758637833113,-151.0,0.00019768,2]
[387197252,1758637833123,-500.0,0.00019768,2]
[387197254,1758637833134,-151.0,0.00019768,2]
[387197256,1758637833144,-500.0,0.00019768,2]
[387197258,1758637833154,-151.0,0.00019768,2]
[387197260,1758637833165,-151.0,0.00019768,2]
[387197262,1758637833175,-500.0,0.00019768,2]
[387197264,1758637833185,-551.19264627,0.00019768,2]
[387197266,1758637833195,-151.0,0.00019768,2]
[387197268,1758637833205,-151.0,0.00019768,2]
[387197270,1758637833215,-500.0,0.00019768,2]
[387197272,1758637833225,-151.0,0.00019768,2]
[387197274,1758637833234,-151.0,0.00019768,2]
[387197276,1758637833244,-500.0,0.00019768,2]
[387197278,1758637833254,-151.0,0.00019768,2]
[387197280,1758637833264,-151.0,0.00019768,2]
[387197282,1758637833274,-500.0,0.00019768,2]
[387197284,1758637833284,-151.0,0.00019768,2]
[387197286,1758637833294,-500.0,0.00019768,2]
[387197288,1758637833306,-151.0,0.00019768,2]
[387197290,1758637833316,-500.0,0.00019768,2]
[387197292,1758637833327,-500.0,0.00019768,2]
[387197294,1758637833337,-151.0,0.00019768,2]
[387197296,1758637833347,-151.0,0.00019768,2]
[387197298,1758637833357,-300.48412891,0.00019768,2]
[387197300,1758637833370,-199.51587109,0.00019768,2]
[387197302,1758637833380,-151.0,0.00019768,2]
[387197304,1758637833389,-338.10112881,0.00019768,2]
[387197306,1758637833402,-161.89887119,0.00019768,2]
[387197308,1758637833412,-151.0,0.00019768,2]
[387197310,1758637833422,-423.26975078,0.00019768,2]
[387197317,1758637833474,-76.73024922,0.00019768,2]
[387197319,1758637833485,-216.28412268,0.00019768,2]
[387197321,1758637833496,-500.0,0.00019768,2]
[387197323,1758637833506,-367.9377107,0.00019768,2]
[387197684,1758637837469,-67.24555875,0.00019768,2]
[387197687,1758637837479,-182.96444125,0.00019768,2]
[387197711,1758637837706,-20.95733658,0.00019768,2]
[387197713,1758637837717,-200.0,0.00019768,2]
[387197715,1758637837727,-322.6107,0.00019768,2]
[387197717,1758637837736,-200.0,0.00019768,2]
[387197719,1758637837746,-200.0,0.00019768,2]
[387197721,1758637837755,-200.0,0.00019768,2]
[387197723,1758637837765,-200.0,0.00019768,2]
[387197725,1758637837775,-200.0,0.00019768,2]
[387197727,1758637837788,-200.0,0.00019768,2]
[387197729,1758637837797,-200.0,0.00019768,2]
[387197731,1758637837807,-200.0,0.00019768,2]
[387197733,1758637837818,-200.0,0.00019768,2]
[387197735,1758637837827,-200.0,0.00019768,2]
[387197737,1758637837837,-200.0,0.00019768,2]
[387197739,1758637837847,-200.0,0.00019768,2]
[387197741,1758637837857,-200.0,0.00019768,2]
[387197743,1758637837867,-327.9368624,0.00019768,2]
[387197745,1758637837877,-55401.9324,0.0001978,2]
[387197747,1758637837886,-2000.0,0.0001978,2]
[387197749,1758637837895,-1000.0,0.0001978,2]
[387197751,1758637837905,-1193.31,0.00019781,2]
[387197753,1758637837914,-1086.65,0.00019781,2]
[387197755,1758637837924,-151.73,0.00019781,2]
[387197757,1758637837933,-380.64638164,0.000198,2]
[387197759,1758637837943,-1094.0,0.00019859,2]
[387197761,1758637837953,-167.61362215,0.00019899,2]
[387197763,1758637837962,-627.25642581,0.00019899,2]
[387197764,1758637837971,-280.11948606,0.00019899,2]
[387197766,1758637837981,-300.0,0.000199,7]
[387197769,1758637837991,-418.9522,0.000199,2]
[387197770,1758637838000,-272794.89299452,0.000199,2]
[387197772,1758637838010,-2476.67561855,0.000199,2]
[387197775,1758637838020,-2811.07151105,0.000199,2]
[387197777,1758637838029,-181.41068659,0.000199,3]
[387197779,1758637838038,-196.0,0.0001993,2]
[387197780,1758637838048,-5341.3845538,0.00019993,2]
[387197783,1758637838059,-211.42694641,0.00019993,2]
[387197785,1758637838068,-731.758,0.00019999,2]
[387197787,1758637838078,-14503.29338334,0.0002,2]
[387197789,1758637838087,-649351.90869147,0.0002,2]
[387197791,1758637838097,-1000.0,0.0002,2]
[387197793,1758637838106,-703470.05641521,0.0002,2]
[387197794,1758637838116,-25819.29264865,0.0002,5]
[387197796,1758637838125,-3095817.32927711,0.0002,2]
[387197870,1758637839632,-1852.42,0.00019215,2]
[387197872,1758637839642,-798.65380472,0.0002,2]
[387197874,1758637839654,-4969.48763122,0.0002,2]
[387197876,1758637839665,-3551.3894698,0.0002,2]
[387197878,1758637839677,-979.4109385,0.0002,2]
[387197880,1758637839688,-5417.37009633,0.0002,2]
[387197883,1758637839700,-332.75679987,0.0002,2]
[387197887,1758637839747,-681.80732294,0.0002,2]
[387197888,1758637839803,-54157.83366636,0.0002,2]
[387197889,1758637839833,-2282.71558425,0.0002,2]
[387197890,1758637839844,-331.06967471,0.0002,2]
[387197891,1758637839899,-4517.32317501,0.0002,2]
[387197892,1758637839912,-145823.92030395,0.0002,2]
[387197970,1758637842819,-15727.33061149,0.0002,2]
[387197971,1758637842856,-716.58202628,0.0002,2]
[387197972,1758637842982,-488.37354993,0.0002,2]
[387197973,1758637843022,-271799.64189685,0.0002,2]
[387198174,1758637846478,-279.8715401,0.0001999,2]
[387198176,1758637846488,-279.8715401,0.0001999,2]
[387198178,1758637846498,-279.8715401,0.0001999,2]
[387198180,1758637846508,-14700.15711734,0.0002,2]
[387198184,1758637846538,-453.03602301,0.0002,2]
[387198194,1758637846616,-1015.78147176,0.0002,2]
[387198207,1758637846938,-1503.75088615,0.0002,2]
[387198208,1758637958112,641.871395,0.00018475,2]
[387198209,1758637959065,641.871395,0.00018233,2]
[387198210,1758637959834,186.193976,0.00018475,2]
[387198211,1758637960867,186.193976,0.00017995,2]
[387198212,1758637961618,641.871395,0.00017999,2]
[387198213,1758637961649,162.23555,0.00018475,2]
[387198214,1758637962129,641.871395,0.00017997,2]
[387198215,1758637962221,162.223427,0.00018475,2]
[387198216,1758637962545,641.871395,0.00017996,2]
[387198217,1758637962744,162.223427,0.00017995,2]
[387198218,1758637962813,162.23555,0.00017995,2]
[387198219,1758637963145,66.56848605,0.00017995,2]
[387198220,1758637963169,575.30290895,0.00017995,2]
[387198221,1758637963649,277.11224421,0.00017995,2]
[387198222,1758637963673,364.75915079,0.00017995,2]
[387198223,1758637964109,641.871395,0.00017994,2]
[387198224,1758637964600,641.871395,0.00017989,2]
[387198225,1758637964937,641.871395,0.00017988,2]
[387198226,1758637965008,493.896875,0.00018475,2]
[387198227,1758637965292,641.871395,0.00017983,2]
[387198228,1758637965375,493.896875,0.00018233,2]
[387198229,1758637966376,493.896875,0.00017999,2]
[387198230,1758637968413,493.896875,0.00017997,2]
[387198231,1758637968950,493.896875,0.00017996,2]
[387198232,1758637969480,493.896875,0.00017995,2]
[387198233,1758637970513,493.896875,0.00017995,2]
[387198234,1758637970931,493.896875,0.00017994,2]
[387198235,1758637970959,341.632677,0.00018475,2]
[387198236,1758637971446,493.896875,0.00017989,2]
[387198237,1758637972087,341.632677,0.00018233,2]
[387198238,1758637972543,341.632677,0.00017999,2]
[387198239,1758637973024,341.632677,0.00017997,2]
[387198240,1758637973329,493.896875,0.00017988,2]
[387198241,1758637973556,493.896875,0.00017983,2]
[387198242,1758637975215,341.632677,0.00017996,2]
[387198243,1758637975729,341.632677,0.00017995,2]
[387198244,1758637977205,341.632677,0.00017995,2]
[387198245,1758637977344,341.632677,0.00017994,2]
[387198246,1758637977949,341.632677,0.00017989,2]
[387198247,1758637979156,341.632677,0.00017988,2]
[387198248,1758637979651,341.632677,0.00017983,2]
[387198249,1758638162905,-175.02213433,0.00018579,2]
[387198250,1758638167001,-124.97786567,0.00018579,2]
[387198251,1758638167025,-42.26213433,0.0001858,2]
[387198252,1758638170514,-319.25970328,0.0001858,2]
[387198253,1758638174105,-151.0,0.0001858,2]
[387198254,1758638178950,-151.75366113,0.0001858,2]
[387198255,1758638181941,-172.77121705,0.0001858,2]
[387198256,1758638185698,-327.31212596,0.0001858,2]
[387198257,1758638189769,-160.61588234,0.0001858,2]
[387198258,1758638191577,-290.91540859,0.0001858,2]
[387198259,1758638194045,-250.0,0.0001858,2]
[387198260,1758638197424,-134.10986732,0.0001858,2]
[387198261,1758638197447,-118.83900532,0.0001858,2]
[387198262,1758638199767,-329.04629252,0.0001858,2]
[387198263,1758638203300,-212.52728159,0.0001858,2]
[387198264,1758638206285,-308.12728219,0.0001858,2]
[387198265,1758638207842,-213.28431436,0.0001858,2]
[387198266,1758638211188,-203.64,0.0001858,2]
[387198267,1758638212924,-209.24762355,0.0001858,2]
[387198268,1758638219371,-286.20282433,0.0001858,2]
[387198269,1758638223410,-119.08537614,0.0001858,2]
[387198270,1758638223435,-124.62360301,0.0001858,2]
[387198271,1758638226928,-402.38138718,0.0001858,2]
[387198272,1758638232998,-309.73367741,0.0001858,2]
[387198273,1758638238087,-300.98136938,0.0001858,2]
[387198274,1758638242607,-540.4,0.0001858,2]
[387198275,1758638243394,196.0,0.00017,2]
[387198276,1758638243804,192.0,0.0001818,2]
[387198277,1758638245350,-167.06,0.0001858,2]
[387198278,1758638248837,-154.81996302,0.0001858,2]
[387198279,1758638272937,155.52,9.483e-05,2]
[387198280,1758638273090,155.52,0.00012644,2]
[387198281,1758638273298,10.43448514,0.00015805,2]
[387198282,1758638273322,145.08551486,0.00015805,2]
[387198283,1758638364227,1768.5417734,0.00018162,2]
[387198284,1758638364250,922.1043178,0.00018162,2]
[387198285,1758638491094,10000.0,0.00030136,120]
[387198286,1758638515292,-17892.87475595,0.00018632,2]
[387198299,1758638584174,173.86614942,0.00018531,2]
[387198300,1758638629940,425.51,0.00021945,30]
[387198301,1758638688231,200.0,0.0001856,2]
[387198303,1758638775882,189.0,0.00016,2]
[387198304,1758638776281,185.0,0.0001718,2]
[387198305,1758638776743,181.0,0.0001837,2]
[387198306,1758638849872,890.64,0.00018472,2]
[387198307,1758638853309,150.0,0.00019,5]
[387198308,1758638915260,150.0,0.00018447,7]
[387198309,1758638929277,169.1332513,0.00020848,30]
[387198310,1758638936022,10000.0,0.00030136,120]
[387198311,1758638945673,215.7,0.00018462,2]
[387198312,1758638947085,-150.7,0.0001858,2]
[387198313,1758638948406,510.95249259,0.00019,5]
[387198314,1758638988459,169.13325131,0.00020765,30]
[387198315,1758639004318,-195.0,0.00018581,2]
[387198316,1758639004345,-250.0,0.00018581,2]
[387198317,1758639004371,-184.59,0.00018582,2]
[387198318,1758639004395,-204.47197539,0.00018597,2]
[387198319,1758639004420,-2637.02,0.00018611,2]
[387198320,1758639004449,-1200.0,0.0001863,2]
[387198321,1758639004475,-300.0,0.0001863,2]
[387198322,1758639004499,-643.0,0.00018631,2]
[387198323,1758639004524,-151.0,0.00018632,2]
[387198324,1758639004550,-4234.91802461,0.00018632,2]
[387198325,1758639006009,-300.0,0.0001863,2]
[387198326,1758639006032,-4326.70721944,0.00018632,2]
[387198327,1758639006055,-1000.0,0.00018676,2]
[387198328,1758639006078,-250.0,0.0001871,2]
[387198329,1758639006100,-150.0,0.00018735,2]
[387198330,1758639006122,-3300.29,0.00018759,2]
[387198331,1758639006145,-205.5,0.00018803,2]
[387198332,1758639006168,-467.50278056,0.00018803,2]
[387198333,1758639007202,-281.84312468,0.00018632,2]
[387198334,1758639007225,-699.56721944,0.00018803,2]
[387198335,1758639007251,-155.52,0.00018967,2]
[387198336,1758639007276,-328.99,0.0001897,2]
[387198337,1758639007300,-317.3,0.00018997,2]
[387198338,1758639007324,-155.28,0.0001901,2]
[387198339,1758639007345,-3002.74519176,0.0001901,2]
[387198340,1758639007367,-166.16,0.00019042,2]
[387198341,1758639007388,-850.0,0.00019094,2]
[387198342,1758639007410,-151.0,0.00019095,2]
[387198343,1758639007433,-151.0,0.00019095,2]
[387198344,1758639007457,-151.0,0.00019095,2]
[387198345,1758639007479,-500.0,0.00019095,2]
[387198346,1758639007501,-500.0,0.00019095,2]
[387198347,1758639007523,-500.0,0.00019095,2]
[387198348,1758639007545,-500.0,0.00019095,2]
[387198349,1758639007567,-500.0,0.00019095,2]
[387198350,1758639007588,-151.81419855,0.00019095,2]
[387198351,1758639007611,-151.0,0.00019095,2]
[387198352,1758639007633,-151.0,0.00019095,2]
[387198353,1758639007655,-151.0,0.00019095,2]
[387198354,1758639007677,-151.0,0.00019095,2]
[387198355,1758639007699,-151.0,0.00019095,2]
[387198356,1758639007721,-151.0,0.00019095,2]
[387198357,1758639007742,-31.78026557,0.00019095,2]
[387198358,1758639008760,-119.21973443,0.00019095,2]
[387198359,1758639008784,-151.0,0.00019095,2]
[387198360,1758639008807,-169.17,0.00019097,2]
[387198361,1758639008833,-500.0,0.00019106,2]
[387198362,1758639008856,-323.37205092,0.00019106,2]
[387198363,1758639008884,-500.0,0.00019106,2]
[387198364,1758639008911,-500.0,0.00019106,2]
[387198365,1758639008936,-500.0,0.00019106,2]
[387198366,1758639008964,-500.0,0.00019106,2]
[387198367,1758639008988,-500.0,0.00019106,2]
[387198368,1758639009014,-500.0,0.00019106,2]
[387198369,1758639009039,-277.60589195,0.00019106,2]
[387198370,1758639009062,-5459.6323227,0.00019107,2]
[387198371,1758639025404,-7500.5276773,0.00019107,2]
[387198372,1758639025426,-151.0,0.00019208,2]
[387198373,1758639025449,-151.0,0.00019208,2]
[387198374,1758639025472,-344.4723227,0.00019208,2]
[387198376,1758639031782,-155.5276773,0.00019208,2]
[387198377,1758639031792,-200.0,0.00019208,2]
[387198378,1758639031802,-500.0,0.00019208,2]
[387198379,1758639031812,-200.0,0.00019208,2]
[387198380,1758639031822,-200.0,0.00019208,2]
[387198381,1758639031834,-500.0,0.00019208,2]
[387198382,1758639031844,-200.0,0.00019208,2]
[387198383,1758639031854,-500.0,0.00019208,2]
[387198384,1758639031865,-200.0,0.00019208,2]
[387198385,1758639031877,-500.0,0.00019208,2]
[387198386,1758639031886,-500.0,0.00019208,2]
[387198387,1758639031896,-200.0,0.00019208,2]
[387198388,1758639031907,-500.0,0.00019208,2]
[387198389,1758639031917,-200.0,0.00019208,2]
[387198390,1758639031927,-151.0,0.00019208,2]
[387198391,1758639031937,-200.0,0.00019208,2]
[387198392,1758639031947,-500.0,0.00019208,2]
[387198393,1758639031956,-200.0,0.00019208,2]
[387198394,1758639031967,-500.0,0.00019208,2]
[387198395,1758639031976,-200.0,0.00019208,2]
[387198396,1758639031986,-500.0,0.00019208,2]
[387198397,1758639031995,-8565.75555911,0.00019208,2]
[387198399,1758639032005,-200.0,0.00019208,2]
[387198400,1758639032015,-500.0,0.00019208,2]
[387198401,1758639032025,-200.0,0.00019208,2]
[387198402,1758639032035,-604.9073082,0.00019208,2]
[387198403,1758639032044,-322.6107,0.00019208,2]
[387198404,1758639032053,-200.0,0.00019208,2]
[387198405,1758639032062,-201.23681298,0.00019208,2]
[387198406,1758639032072,-200.0,0.00019208,2]
[387198407,1758639032082,-200.0,0.00019208,2]
[387198408,1758639032091,-200.0,0.00019208,2]
[387198409,1758639032101,-151.0,0.00019208,2]
[387198410,1758639032111,-200.0,0.00019208,2]
[387198411,1758639032121,-151.0,0.00019208,2]
[387198412,1758639032130,-151.0,0.00019208,2]
[387198413,1758639032140,-200.0,0.00019208,2]
[387198414,1758639032150,-151.0,0.00019208,2]
[387198415,1758639032159,-200.0,0.00019208,2]
[387198416,1758639032168,-151.0,0.00019208,2]
[387198417,1758639032181,-151.0,0.00019208,2]
[387198418,1758639032191,-200.0,0.00019208,2]
[387198419,1758639032201,-151.0,0.00019208,2]
[387198420,1758639032211,-200.0,0.00019208,2]
[387198421,1758639032221,-151.0,0.00019208,2]
[387198422,1758639032231,-218.76018349,0.00019208,2]
[387198423,1758639032241,-200.0,0.00019208,2]
[387198424,1758639032252,-151.0,0.00019208,2]
[387198425,1758639032263,-200.0,0.00019208,2]
[387198427,1758639032272,-151.0,0.00019208,2]
[387198429,1758639032282,-163.0,0.00019208,2]
[387198430,1758639032292,-771.37125813,0.00019208,2]
[387198431,1758639032301,-315.58330048,0.00019208,2]
[387198432,1758639032311,-500.0,0.00019208,2]
[387198433,1758639032321,-151.0,0.00019208,2]
[387198434,1758639032331,-500.0,0.00019208,2]
[387198436,1758639032340,-216.12972576,0.00019208,2]
[387198438,1758639032350,-500.0,0.00019208,2]
[387198440,1758639032360,-500.0,0.00019208,2]
[387198442,1758639032370,-500.0,0.00019208,2]
[387198444,1758639032379,-500.0,0.00019208,2]
[387198446,1758639032388,-500.0,0.00019208,2]
[387198448,1758639032398,-500.0,0.00019208,2]
[387198450,1758639032407,-500.0,0.00019208,2]
[387198452,1758639032417,-500.0,0.00019208,2]
[387198454,1758639032427,-500.0,0.00019208,2]
[387198456,1758639032436,-500.0,0.00019208,2]
[387198458,1758639032446,-500.0,0.00019208,2]
[387198460,1758639032456,-250.0,0.00019208,2]
[387198462,1758639032465,-500.0,0.00019208,2]
[387198464,1758639032475,-500.0,0.00019208,2]
[387198466,1758639032484,-250.0,0.00019208,2]
[387198468,1758639032494,-500.0,0.00019208,2]
[387198470,1758639032504,-250.0,0.00019208,2]
[387198472,1758639032514,-500.0,0.00019208,2]
[387198474,1758639032523,-248.71531821,0.00019208,2]
[387198475,1758639032533,-250.0,0.00019208,2]
[387198476,1758639032543,-500.0,0.00019208,2]
[387198477,1758639032552,-250.0,0.00019208,2]
[387198478,1758639032562,-500.0,0.00019208,2]
[387198479,1758639032571,-250.0,0.00019208,2]
[387198480,1758639032581,-500.0,0.00019208,2]
[387198481,1758639032590,-250.0,0.00019208,2]
[387198482,1758639032766,-500.0,0.00019208,2]
[387198483,1758639032810,-284.21662074,0.00019208,2]
[387198484,1758639032821,-500.0,0.00019208,2]
[387198485,1758639032832,-500.0,0.00019208,2]
[387198486,1758639032842,-275.0,0.0001924,2]
[387198487,1758639032851,-1424.69973042,0.00019263,2]
[387198488,1758639032862,-275.0,0.00019316,2]
[387198489,1758639032871,-275.0,0.00019448,2]
[387198490,1758639032882,-275.0,0.00019489,2]
[387198491,1758639032892,-1001.0,0.000195,2]
[387198492,1758639032903,-177.0,0.0001955,2]
[387198493,1758639032913,-275.0,0.00019637,2]
[387198494,1758639032924,-368.95062383,0.00019752,2]
[387198495,1758639032933,-275.0,0.0001979,2]
[387198496,1758639032946,-1000.0,0.000198,2]
[387198497,1758639032956,-2500.0,0.000198,7]
[387198498,1758639032967,-2468.16443,0.000198,2]
[387198499,1758639032976,-2468.16444,0.000198,2]
[387198500,1758639032986,-2468.16443,0.0001981,2]
[387198501,1758639032995,-8501.12728034,0.00019839,2]
[387198502,1758639033006,-901.0803524,0.00019894,2]
[387198503,1758639033015,-5000.0,0.000199,2]
[387198504,1758639033025,-5100.0,0.000199,7]
[387198505,1758639033035,-333.06558397,0.000199,2]
[387198506,1758639033045,-2500.0,0.000199,2]
[387198507,1758639033055,-190.28425176,0.000199,2]
[387198508,1758639033065,-275.0,0.00019923,2]
[387198509,1758639033075,-3645.5523524,0.00019938,2]
[387198510,1758639033086,-53626.2402276,0.00019939,2]
[387198511,1758639033096,-19123.8770514,0.00019939,2]
[387198512,1758639033105,-317.3,0.00019947,2]
[387198513,1758639033116,-787.40407907,0.00019978,2]
[387198514,1758639033126,-1000.0,0.0001998,2]
[387198515,1758639033136,-1000.0,0.0001998,3]
[387198516,1758639033146,-1000.0,0.0001998,3]
[387198517,1758639033156,-1000.0,0.0001998,2]
[387198518,1758639033165,-10689.9129133,0.00019994,2]
[387198519,1758639033176,-13889.8918086,0.00019994,2]
[387198520,1758639033189,-151.0,0.00019997,2]
[387198521,1758639033199,-585.406,0.00019999,2]
[387198522,1758639033208,-156.60398258,0.00019999,2]
[387198523,1758639033221,-196.08364024,0.00019999,2]
[387198524,1758639033231,-500.0,0.00019999,2]
[387198525,1758639033241,-379.96184718,0.0002,2]
[387198526,1758639033260,-30148.55224166,0.0002,2]
[387198527,1758639033273,-1253.84725605,0.0002,2]
[387198528,1758639033293,-8033.05207444,0.0002,2]
[387198529,1758639033324,-1934.57660971,0.0002,2]
[387198536,1758639038102,-329.78010661,0.00019799,2]